Cogmind - Beta 14 @@@ ROGUE MODE // 2024.08.17 @ 12:38:42 Player: Daffa0360 Result: Destroyed by H-66 Slayer with Gauss Rifle Performance ------------- Evolutions (5) 2500 Regions Visited (10) 2000 Robots Destroyed (61) 305 Value Destroyed (2845) 2845 Prototype IDs (38) 760 Alien Tech Used (0) 0 Bonus (744) 744 TOTAL SCORE: 9154 Bonus ------- High Alert Combat Kills 16 Follower Combat Kills 588 Aligned with FarCom 300 Friendly Fire -160 Cogmind --------- Core Integrity 0/1000 Matter 129/300 Energy 97/300 System Corruption 12% Temperature Cool (0) Movement Rolling (90) Location -5/Factory Parts ------- > --- POWER (2) -------- (None) > --- PROPULSION (2) --- Armored Wheel > --- UTILITY (10) ----- Compact Battery Terrain Scan Processor Improved Target Analyzer Core Analyzer PSU Rigger > --- WEAPON (3) ------- (None) > --- INVENTORY (5) ---- Enhanced Armored Leg Wheel Improved Recalibrator Mass Driver Plasma Cutter Peak State ------------ > --- POWER ------------ Light Angular Momentum Engine Micro Fission Core > --- PROPULSION ------- Enhanced Armored Leg Enhanced Armored Leg > --- UTILITY ---------- Improved Coolant Injector Small Storage Unit Terrain Scan Processor Improved Target Analyzer Core Analyzer Improved Reaction Control System Improved Medium Armor Plating Improved Thermal Shield Shock Absorption System Improved Shock Absorption System > --- WEAPON ----------- Advanced Plasma Cannon Hypervelocity Gauss Rifle Lance > --- INVENTORY -------- Fusion Compressor Enhanced Armored Leg Improved Recalibrator PSU Rigger Hypervelocity Gauss Rifle Smartbomb Launcher Plasma Cutter [Rating: 89] Favorites ----------- Power Micro Fission Core Engine Heavy Ion Engine Power Core Micro Fission Core Propulsion Armored Treads Treads Armored Treads Leg Enhanced Armored Leg Wheel Wheel Utility Small Storage Unit Device Advanced Heat Sink Storage Small Storage Unit Processor Terrain Scan Processor Hackware Makeshift Hacking Suite Protection Improved Medium Armor Plating Weapon Lance Energy Gun Beamcaster Energy Cannon Advanced Plasma Cannon Ballistic Gun Heavy Machine Gun Launcher Smartbomb Launcher Special Weapon Plasma Cutter Impact Weapon Maul Slashing Weapon Scythe Piercing Weapon Lance Build | -11 -10 -10 -10 -9 -8 -8 -8 -6 -6 -5 ------- Run | Yrd Mat Min Exi Min Mat Sto Rec Fac Ext Fac Slots Evolved 10 | . . . . . 4 . . 4 . 2 Power 1 | . . . . . . . . 1 . . Propulsion . | . . . . . . . . . . . Utility 8 | . . . . . 4 . . 3 . 1 Weapon 1 | . . . . . . . . . . 1 Parts Attached 123 | 6 . 5 . 2 6 23 4 18 14 45 Power 13 | 1 . 1 . . . 3 . 1 4 3 Engine 6 | 1 . 1 . . . 1 . 1 1 1 Core 7 | . . . . . . 2 . . 3 2 Reactor . | . . . . . . . . . . . Propulsion 15 | 2 . . . 2 . 2 . 1 4 4 Treads 6 | . . . . . . 2 . . 4 . Leg 3 | . . . . . . . . . . 3 Wheel 6 | 2 . . . 2 . . . 1 . 1 Hover . | . . . . . . . . . . . Flight . | . . . . . . . . . . . Utility 40 | 1 . 2 . . 4 2 1 10 3 17 Device 22 | . . 1 . . 1 2 . 6 . 12 Storage 2 | 1 . . . . . . . . . 1 Processor 8 | . . . . . 3 . 1 1 1 2 Hackware 1 | . . . . . . . . 1 . . Protection 7 | . . 1 . . . . . 2 2 2 Artifact . | . . . . . . . . . . . Weapon 55 | 2 . 2 . . 2 16 3 6 3 21 Energy Gun 20 | . . 1 . . 2 10 2 . . 5 Energy Cannon 9 | . . . . . . 1 . 1 . 7 Ballistic Gun 9 | 2 . 1 . . . . . 1 2 3 Ballistic Cannon . | . . . . . . . . . . . Launcher 5 | . . . . . . 1 . . . 4 Special Weapon 4 | . . . . . . 1 . 2 1 . Impact Weapon 3 | . . . . . . 3 . . . . Slashing Weapon 3 | . . . . . . . 1 2 . . Piercing Weapon 2 | . . . . . . . . . . 2 Special Melee Weapon . | . . . . . . . . . . . Unidentified Prototypes 11 | . . . . . 1 7 . 1 . 2 Parts Lost 40 | . . . . 1 . . . 7 2 30 Power 5 | . . . . . . . . 2 . 3 Propulsion 6 | . . . . 1 . . . . 1 4 Utility 21 | . . . . . . . . 5 1 15 Weapon 8 | . . . . . . . . . . 8 Highest Loss Streak 16 | . . . . 1 . . . 2 2 16 To Critical Strikes . | . . . . . . . . . . . Average Slot Usage (%) 93 | . 85 99 100 99 93 100 100 84 94 89 Engine 4 | . 14 14 14 14 9 7 9 5 1 . Core 4 | . . . . . . 1 . . 7 9 Treads 6 | . . . . . . 2 18 2 10 7 Wheel 6 | . 28 28 28 27 18 15 . 4 1 . Device 11 | . . 12 . . 9 9 9 17 6 15 Storage 7 | . 14 14 14 14 9 9 9 6 6 4 Processor 20 | . . . . . 20 27 27 20 31 21 Hackware 3 | . . . . . . . . 6 6 3 Protection 6 | . . 1 14 14 9 9 9 6 7 4 Energy Gun 6 | . . 1 14 14 14 11 17 7 . 3 Energy Cannon 1 | . . . . . . 1 . 2 . 3 Ballistic Gun 4 | . 28 26 14 14 3 . . 1 5 . Slashing Weapon 1 | . . . . . . . . 1 6 . Piercing Weapon 1 | . . . . . . . . . . 4 Peak Build Rating 89 | 6 6 13 14 14 27 32 35 65 59 89 Average Rating 50 | 3 6 10 13 13 23 28 34 55 52 72 On Entrance 23 | . 6 6 13 14 14 27 32 35 48 59 Naked Turns . | . . . . . . . . . . . Heaviest Build 59 | 11 11 19 19 19 20 23 24 46 45 59 Greatest Support 50 | 20 20 20 20 20 20 40 40 40 50 50 Greatest Overweight (x) 9 | . . . . 1 . 1 . 1 1 9 Average Overweight (x) . | . . . . . . . . . . . Largest Inventory Capacity 8 | 8 8 8 8 8 8 8 8 8 8 8 Average Capacity 7 | 6 8 8 8 8 8 8 8 8 8 7 Most Carried 8 | 5 3 6 7 8 8 8 8 8 8 8 Average Carried 7 | 1 3 3 6 7 7 7 7 7 7 7 Final Capacity 8 | 8 8 8 8 8 8 8 8 8 8 5 Final Carried 8 | 3 3 6 7 8 8 8 8 8 8 5 Class Distribution -------------------- 30% | Scavenger-Mutant 28% | Mutant 16% | Commander-Skirmisher 12% | Scavenger-Assassin 7% | Skirmisher 3% | Assassin Dominant Class ---------------- Mutant | -10/Materials Mutant | -10/Mines Mutant | -10/Exiles Mutant | -9/Mines Skirmisher | -8/Materials Commander-Skirmisher | -8/Storage Commander-Skirmisher | -8/Recycling Skirmisher | -6/Factory Scavenger-Mutant | -6/Extension Scavenger-Mutant | -5/Factory Resources | -11 -10 -10 -10 -9 -8 -8 -8 -6 -6 -5 ----------- Run | Yrd Mat Min Exi Min Mat Sto Rec Fac Ext Fac Matter Collected 1639 | 264 . 77 . 47 . 242 99 199 290 421 Remotely . | . . . . . . . . . . . Salvage Created 2670 | 23 . 133 . 43 49 158 167 779 121 1197 Parts 133 | 4 . 3 . . 3 9 6 25 10 73 Haulers Intercepted . | . . . . . . . . . . . Recyclers Shooed 2 | . . . . . . . . . . 2 Parts Field Recycled . | . . . . . . . . . . . Retrieved Matter . | . . . . . . . . . . . Parts Self-Destructed . | . . . . . . . . . . . Prevented . | . . . . . . . . . . . Kills | -11 -10 -10 -10 -9 -8 -8 -8 -6 -6 -5 ------- Run | Yrd Mat Min Exi Min Mat Sto Rec Fac Ext Fac Combat Hostiles Destroyed 57 | . . 3 . 4 1 3 3 12 2 29 Melee 11 | . . . . . . . . 1 . 10 Guns 22 | . . 3 . 4 1 3 3 4 2 2 Cannons 8 | . . . . . . . . 5 . 3 AOE 11 | . . . . . . . . . . 11 Classes Destroyed 9 | 1 . 2 . 1 . 1 . 1 . 3 Worker 5 | . . . . . . . . 1 . 4 Tunneler 1 | 1 . . . . . . . . . . Swarmer 9 | . . . . . . . . . . 9 Grunt 18 | . . 2 . . . 3 . 8 . 5 Sentry 13 | . . 1 . . 1 . 3 5 2 1 Hunter 4 | . . . . . . . . . . 4 Programmer 10 | . . . . . . . . . . 10 Zionite 1 | . . . . . . 1 . . . . Assembled 4 | . . . . 4 . . . . . . Best Kill Streak 10 | 1 . 2 . 4 1 2 1 3 1 10 Combat Bots Only 6 | . . 2 . 4 1 2 1 3 1 6 Max Kills in Single Turn 5 | 1 . 1 . 1 1 2 1 2 1 5 Gunslinging 1 | . . . . . . . . 1 . . Exploded 3 | . . . . . . . . . . 3 Melee 1 | . . . . . . . . 1 . 1 Uniques/NPCs Destroyed . | . . . . . . . . . . . Combat | -11 -10 -10 -10 -9 -8 -8 -8 -6 -6 -5 -------- Run | Yrd Mat Min Exi Min Mat Sto Rec Fac Ext Fac Hostile Shots Fired 703 | . 2 18 . 10 6 4 . 231 102 330 Missed 214 | . . 1 . 5 3 2 . 77 33 93 Damage Taken 7649 | . 17 215 . 104 45 67 . 2058 691 4452 Core 1447 | . . 11 . 12 30 13 . 314 65 1002 Absorbed by Shields 112 | . . . . . . . . . 112 . Redirected to Shielding 34 | . . 3 . 16 4 5 . 6 . . Ignored by Resistances 8 | . . . . . . . . . . 8 Regen/Repaired (Parts) 61 | . . . . . . 61 . . . . Core Remaining (%) 84 | 100 . . . 90 . . 92 . 55 . Volleys Fired 165 | 1 . 8 . 9 1 19 4 57 12 54 Largest 2 | 2 . 2 . 2 1 2 2 2 1 2 Hottest 173 | 40 . 98 . 98 69 137 144 144 30 173 Shots Fired 256 | 2 . 16 . 18 1 28 8 90 12 81 Gun 172 | 2 . 16 . 18 1 21 8 63 12 31 Cannon 70 | . . . . . . 1 . 27 . 42 Launcher 9 | . . . . . . 1 . . . 8 Special 5 | . . . . . . 5 . . . . Kinetic 53 | 2 . 11 . 9 . . . 5 12 14 Thermal 175 | . . 5 . 9 1 27 8 85 . 40 Explosive 9 | . . . . . . 1 . . . 8 Electromagnetic 19 | . . . . . . . . . . 19 Robot Hit Streak 13 | . . 8 . 4 3 5 7 13 6 9 Robot Miss Streak 4 | 2 . 4 . 1 . 2 1 2 1 4 Penetration Max . | . . . . . . . . . . . Secondary Targets 2 | . . . . 1 . . . 1 . . Max Gunslinging Chain 1 | . . . . 1 . . . 1 . . Shots Hit Robots 223 | . . 11 . 11 1 12 7 73 9 99 Core Hits 98 | 1 . 6 . 5 1 7 3 30 3 42 Critical Kills . | . . . . . . . . . . . Critical Parts Destroyed 2 | . . . . . . . . . . 2 Critical Strikes 16 | . . . . 1 . 3 2 1 . 9 Burn 7 | . . . . 1 . 3 2 1 . . Destroy 2 | . . . . . . . . . . 2 Corrupt 1 | . . . . . . . . . . 1 Impale 6 | . . . . . . . . . . 6 Melee Attacks 101 | . . . . . . 9 3 7 . 82 Impact 9 | . . . . . . 9 . . . . Slashing 10 | . . . . . . . 3 7 . . Piercing 82 | . . . . . . . . . . 82 Sneak Attacks 2 | . . . . . . . . . . 2 Combat Hostiles 2 | . . . . . . . . . . 2 Follow-up Attacks . | . . . . . . . . . . . Damage Inflicted 7913 | 13 . 157 . 190 19 281 142 1790 177 5144 Guns 2308 | 13 . 157 . 190 19 253 142 1054 177 303 Cannons 1762 | . . . . . . . . 705 . 1057 Explosions 2086 | . . . . . . . . . . 2086 Melee 1757 | . . . . . . 28 . 31 . 1698 Ramming . | . . . . . . . . . . . Kinetic 499 | 13 . 96 . 86 . . . 93 177 34 Thermal 3178 | . . 61 . 104 19 253 142 1666 . 933 Explosive 2086 | . . . . . . . . . . 2086 Electromagnetic 393 | . . . . . . . . . . 393 Impact 28 | . . . . . . 28 . . . . Slashing 31 | . . . . . . . . 31 . . Piercing 1698 | . . . . . . . . . . 1698 Highest Corruption 12 | . . . . . . . . 9 9 12 Average Corruption 7 | . . . . . . . . 9 9 4 Corruption Purged 5 | . . . . . . . . . . 5 Corruption Blocked . | . . . . . . . . . . . Effects 103 | . . . . . . . . 26 50 27 Message Errors 25 | . . . . . . . . 6 13 6 Matter Fused 25 | . . . . . . . . 3 16 6 Heat Flow Errors 13 | . . . . . . . . 1 7 5 Energy Discharges 14 | . . . . . . . . 7 6 1 Parts Rejected 3 | . . . . . . . . 1 . 2 Parts Fused 4 | . . . . . . . . 2 1 1 Data Loss (minor) 9 | . . . . . . . . 2 3 4 Data Loss (major) 5 | . . . . . . . . 1 2 2 Misfires 2 | . . . . . . . . 1 1 . Alerts 1 | . . . . . . . . 1 . . Weapon Failures 2 | . . . . . . . . 1 1 . Overload Shots . | . . . . . . . . . . . Overflow Damage 386 | . . . . . . . . . . 386 Projectiles 46 | . . . . . . . . . . 46 Explosions 206 | . . . . . . . . . . 206 Melee 134 | . . . . . . . . . . 134 Knockbacks . | . . . . . . . . . . . Impact . | . . . . . . . . . . . Kinetic . | . . . . . . . . . . . Secondary . | . . . . . . . . . . . Self-Inflicted Damage 100 | . . . . . . 39 . . . 61 Shots 5 | . . . . . . 1 . . . 4 Rammed . | . . . . . . . . . . . Targets Rammed . | . . . . . . . . . . . Kicked . | . . . . . . . . . . . Crushed . | . . . . . . . . . . . Highest Temperature 374 | . . 190 . 236 16 374 138 301 185 267 Average Temperature 95 | . . 72 . 127 12 125 58 85 71 95 Received Heat Transfer 1265 | . . 132 . 29 18 36 . 684 96 270 Effects 1 | . . . . . . . . 1 . . Energy Bleed 1 | . . . . . . . . 1 . . Siege Activations . | . . . . . . . . . . . Robots Corrupted 3 | . . . . . . . . . . 3 Combat Hostiles 3 | . . . . . . . . . . 3 Parts Fried 2 | . . . . . . . . . . 2 Impact Corruptions . | . . . . . . . . . . . Robots Melted 2 | . . . . . . . . 2 . . Combat Hostiles 2 | . . . . . . . . 2 . . Parts Melted 14 | . . . . . . . 5 4 . 5 Heat Transferred 5605 | . . 111 . 259 37 703 407 2701 . 1387 Parts Sabotaged . | . . . . . . . . . . . Parts Stolen . | . . . . . . . . . . . Parts Stripped . | . . . . . . . . . . . Power Chain Reactions . | . . . . . . . . . . . Alert | -11 -10 -10 -10 -9 -8 -8 -8 -6 -6 -5 ------- Run | Yrd Mat Min Exi Min Mat Sto Rec Fac Ext Fac Peak Influence 435 | 5 18 56 . 15 42 302 128 201 177 435 Initial 93 | . 3 6 . . 5 17 45 . 93 49 Average 73 | 1 10 27 . 4 8 98 78 90 47 94 Maximum Alert Level 2 | . . . . . . 1 . 1 . 2 Low Security (%) 92 | 100 100 100 . 100 100 90 100 99 100 81 Level 1 6 | . . . . . . 9 . . . 15 Level 2 1 | . . . . . . . . . . 3 Level 3 . | . . . . . . . . . . . Level 4 . | . . . . . . . . . . . Level 5 . | . . . . . . . . . . . High Security . | . . . . . . . . . . . Max Security . | . . . . . . . . . . . Squads Dispatched 24 | . . . . . . 1 . 12 2 9 Investigation 6 | . . . . . . . . 3 2 1 Extermination 8 | . . . . . . . . 2 . 6 Reinforcement 5 | . . . . . . 1 . 2 . 2 Assault . | . . . . . . . . . . . Garrison 5 | . . . . . . . . 5 . . Intercept . | . . . . . . . . . . . Searches Triggered . | . . . . . . . . . . . Construction Impeded . | . . . . . . . . . . . Haulers Reinforced 1 | . . . . . . . . . . 1 Active Scanning Responses . | . . . . . . . . . . . Cargo Convoy Interrupts . | . . . . . . . . . . . Stealth | -11 -10 -10 -10 -9 -8 -8 -8 -6 -6 -5 --------- Run | Yrd Mat Min Exi Min Mat Sto Rec Fac Ext Fac Distress Signals 10 | . 2 . . 1 1 1 . . 5 . Communications Jammed . | . . . . . . . . . . . Distress Signals . | . . . . . . . . . . . Times Spotted 88 | . 7 5 . 4 1 7 1 24 5 34 Peak Tracking Total 8 | . 8 2 . 3 1 2 1 5 2 5 Tactical Retreats 6 | . . 1 . . . . . 4 . 1 Traps | -11 -10 -10 -10 -9 -8 -8 -8 -6 -6 -5 ------- Run | Yrd Mat Min Exi Min Mat Sto Rec Fac Ext Fac Traps Triggered 3 | . . . . . . . . 2 1 . Indirectly . | . . . . . . . . . . . Trap Hack Attempts . | . . . . . . . . . . . Triggered . | . . . . . . . . . . . Disarmed . | . . . . . . . . . . . Reprogrammed . | . . . . . . . . . . . Reused . | . . . . . . . . . . . Traps Extracted . | . . . . . . . . . . . Installed . | . . . . . . . . . . . Triggered . | . . . . . . . . . . . Objects Rigged 1 | . . . . . . . . . . 1 Machines | -11 -10 -10 -10 -9 -8 -8 -8 -6 -6 -5 ---------- Run | Yrd Mat Min Exi Min Mat Sto Rec Fac Ext Fac Machines Disabled 13 | . . . . 1 . 4 1 . 2 5 Max in Single Turn 3 | . . . . 1 . 1 1 . 1 3 Machines Repaired . | . . . . . . . . . . . Machines Dismantled 2 | . . . . . . 1 . . 1 . Machines Sabotaged . | . . . . . . . . . . . Overloaded Fab Kills . | . . . . . . . . . . . Hacking | -11 -10 -10 -10 -9 -8 -8 -8 -6 -6 -5 --------- Run | Yrd Mat Min Exi Min Mat Sto Rec Fac Ext Fac Machines Accessed 23 | . . . 1 . . 4 5 3 8 2 Terminals 19 | . . . . . . 3 5 2 8 1 Fabricators 1 | . . . . . . . . . . 1 Repair Stations 1 | . . . . . . 1 . . . . Recycling Units . | . . . . . . . . . . . Scanalyzers . | . . . . . . . . . . . Garrison Access 1 | . . . . . . . . 1 . . Total Hacks 56 | . . . 1 . . 10 14 7 19 5 Successful 27 | . . . 1 . . 4 6 2 11 3 Failed 29 | . . . . . . 6 8 5 8 2 Catastrophic 4 | . . . . . . . . 2 1 1 Database Lockouts . | . . . . . . . . . . . Manual 11 | . . . 1 . . 5 5 . . . Terminals 47 | . . . . . . 8 14 5 19 1 Fabricators 4 | . . . . . . . . . . 4 Repair Stations 2 | . . . . . . 2 . . . . Recycling Units . | . . . . . . . . . . . Scanalyzers . | . . . . . . . . . . . Garrison Access 2 | . . . . . . . . 2 . . Terminal Hacks 21 | . . . 1 . . 1 5 2 11 1 Record 3 | . . . . . . . . . 3 . Part Schematic 1 | . . . . . . . . . 1 . Robot Schematic 1 | . . . . . . . . . 1 . Robot Analysis 1 | . . . . . . . . 1 . . Prototype ID Bank 2 | . . . . . . . 2 . . . Open Door 5 | . . . . . . . . . 5 . Branch Access Points 1 | . . . . . . . 1 . . . Terminal Index 1 | . . . . . . . 1 . . . Alert Level 3 | . . . . . . . 1 1 1 . Locate Traps 1 | . . . . . . . . . . 1 Maintenance Status 1 | . . . . . . 1 . . . . Derelict Proto ID Bank 1 | . . . 1 . . . . . . . Fabricator Hacks 2 | . . . . . . . . . . 2 Load Schematic 1 | . . . . . . . . . . 1 Build 1 | . . . . . . . . . . 1 Repair Station Hacks 2 | . . . . . . 2 . . . . Scan Component 1 | . . . . . . 1 . . . . Repair 1 | . . . . . . 1 . . . . Recycling Unit Hacks . | . . . . . . . . . . . Scanalyzer . | . . . . . . . . . . . Garrison Access Hacks . | . . . . . . . . . . . Unauthorized Hacks 2 | . . . . . . 1 1 . . . Terminals 2 | . . . . . . 1 1 . . . Botnet 2 | . . . . . . 1 1 . . . Fabricators . | . . . . . . . . . . . Repair Stations . | . . . . . . . . . . . Recycling Units . | . . . . . . . . . . . Scanalyzers . | . . . . . . . . . . . Garrison Access . | . . . . . . . . . . . Data Cores Recovered . | . . . . . . . . . . . Used . | . . . . . . . . . . . Hacking Detections 15 | . . . . . . 4 4 2 4 1 Full Trace Events 4 | . . . . . . . . 1 2 1 Feedback Events . | . . . . . . . . . . . Feedback Blocked . | . . . . . . . . . . . Robot Schematics Acquired 1 | . . . . . . . . . 1 . Robots Built . | . . . . . . . . . . . Authchips . | . . . . . . . . . . . Time . | . . . . . . . . . . . Total Robot Build Rating . | . . . . . . . . . . . Part Schematics Acquired 1 | . . . . . . . . . 1 . Parts Built 2 | . . . . . . . . . . 2 Authchips . | . . . . . . . . . . . Time 58 | . . . . . . . . . . 58 Total Part Build Rating 14 | . . . . . . . . . . 14 Parts Repaired 1 | . . . . . . 1 . . . . Time 50 | . . . . . . 50 . . . . Parts Recycled . | . . . . . . . . . . . Recycled Matter . | . . . . . . . . . . . Retrieved Matter . | . . . . . . . . . . . Retrieved Components . | . . . . . . . . . . . Parts Scanalyzed . | . . . . . . . . . . . Part Schematics Acquired . | . . . . . . . . . . . Parts Damaged . | . . . . . . . . . . . Bothacking | -11 -10 -10 -10 -9 -8 -8 -8 -6 -6 -5 ------------ Run | Yrd Mat Min Exi Min Mat Sto Rec Fac Ext Fac Used RIF Installer . | . . . . . . . . . . . Robots Hacked . | . . . . . . . . . . . Non-combat . | . . . . . . . . . . . Combat . | . . . . . . . . . . . Robot Hacks Applied . | . . . . . . . . . . . Relay Couplers Released . | . . . . . . . . . . . Fabnet Peak Effective % . | . . . . . . . . . . . Robots Rewired . | . . . . . . . . . . . Allies Hacked . | . . . . . . . . . . . Hacks Repelled . | . . . . . . . . . . . Allies | -11 -10 -10 -10 -9 -8 -8 -8 -6 -6 -5 -------- Run | Yrd Mat Min Exi Min Mat Sto Rec Fac Ext Fac Total Allies 22 | . . . . 5 . 10 . . 7 . Largest Group 12 | . . . . 5 4 12 12 8 6 6 Highest-Rated Group 294 | . . . . 88 72 220 220 156 294 294 Highest-Rated Ally 159 | . . . . 31 31 31 31 31 159 159 Total Orders . | . . . . . . . . . . . Ally Attacks 147 | . . . . 6 2 52 6 30 31 20 Total Damage 2498 | . . . . 96 16 584 79 471 571 681 Kills 16 | . . . . . . 3 . 4 4 5 Allies Corrupted 2 | . . . . . . . . . . 2 Allies Melted . | . . . . . . . . . . . Intel | -11 -10 -10 -10 -9 -8 -8 -8 -6 -6 -5 ------- Run | Yrd Mat Min Exi Min Mat Sto Rec Fac Ext Fac Robot Analysis Total 1 | . . . . . . . . 1 . . Derelict Logs Recovered 2 | . . . . 2 . . . . . . Drone Launches . | . . . . . . . . . . . Drone Recoveries . | . . . . . . . . . . . Exploration | -11 -10 -10 -10 -9 -8 -8 -8 -6 -6 -5 ------------- Run | Yrd Mat Min Exi Min Mat Sto Rec Fac Ext Fac Turns Passed 8995 | 88 25 647 215 390 105 681 835 1090 1460 3459 Spaces Moved 4754 | 109 32 598 251 320 73 436 472 629 774 1060 Core 144 | 51 . . . . . . . . . 93 Treads 1826 | . . . . . . 40 472 113 553 648 Legs 309 | . . . . . . . . . . 309 Wheels 2475 | 58 32 598 251 320 73 396 . 516 221 10 Hover . | . . . . . . . . . . . Flight . | . . . . . . . . . . . Fastest Speed 50 | 50 80 80 80 80 80 80 170 100 100 50 Average Speed 136 | 65 80 80 80 80 80 91 170 121 176 194 Slowest Speed 500 | 80 80 80 80 95 80 170 170 250 250 500 Overloaded Moves . | . . . . . . . . . . . Propulsion Burnouts . | . . . . . . . . . . . Robots Hopped . | . . . . . . . . . . . Cave-ins Triggered 1 | . . . . . . . . 1 . . Exploration Rate (%) 40 | 4 12 78 61 72 7 34 87 13 54 21 Regions Visited 10 Branch Regions 6 Pre-discovered Areas . | . . . . . . . . . . . Known Exits Taken 2 | . . . . . . . . 1 1 . Unknown Exits Taken 8 | 1 1 1 1 1 1 1 1 . . . Scrap Searched 4 | . . 1 . 3 . . . . . . Spaces Dug 17 | . . . . . . . . 2 . 15 Terrain Destroyed 128 | . . . . . . 7 . 6 . 115 Melee 15 | . . . . . . . . 2 . 13 Projectile 14 | . . . . . . . . 4 . 10 AOE 99 | . . . . . . 7 . . . 92 Terrain Rammed . | . . . . . . . . . . . Walls Destroyed . | . . . . . . . . . . . Machines Disabled . | . . . . . . . . . . . Actions | -11 -10 -10 -10 -9 -8 -8 -8 -6 -6 -5 --------- Run | Yrd Mat Min Exi Min Mat Sto Rec Fac Ext Fac Total 6784 | 122 31 749 265 435 117 629 491 850 839 2256 Wait 1487 | . . 133 12 101 30 103 5 124 23 956 Move 4744 | 108 31 597 250 319 72 435 471 628 773 1060 Hop . | . . . . . . . . . . . Pick Up 71 | 7 . 5 2 2 4 8 2 9 3 29 Fast Attach 40 | 2 . . . 1 4 6 . 6 6 15 Attach 36 | 4 . 1 . . 1 . . 5 1 24 Detach 6 | . . . . . . . . 1 . 5 Swap 47 | . . 4 . 1 1 17 4 7 7 6 Drop 60 | . . 1 1 2 4 14 2 6 6 24 Fire 165 | 1 . 8 . 9 1 19 4 57 12 54 Melee 101 | . . . . . . 9 3 7 . 82 Ram . | . . . . . . . . . . . Kick . | . . . . . . . . . . . Crush . | . . . . . . . . . . . Escape Stasis . | . . . . . . . . . . . Rewire . | . . . . . . . . . . . Trap 1 | . . . . . . . . . . 1 Miscellaneous 26 | . . . . . . 18 . . 8 . Route ------- -11/Scrapyard -10/Materials -10/Mines (discovered 4 exits: [*Mat x2] / *Exi / [Sub]) -10/Exiles -9/Mines -8/Materials -8/Storage -8/Recycling -6/Factory -6/Extension -5/Factory (discovered 1 exit: *Upp) History --------- Turn | Location | Event 3 | -11/Scrapyard | Discovered new exit (range 15) 89 | -11/Scrapyard | Entered Materials 96 | -10/Materials | Discovered new exit (range 15) 114 | -10/Materials | Entered Mines 116 | -10/Mines | Joined a pair of Derelicts in attacking an 0b10 outpost 190 | -10/Mines | Discovered new exit (range 11) 229 | -10/Mines | Discovered new exit (range 16) 317 | -10/Mines | Build established: Mutant 561 | -10/Mines | Found a damaged Exp. Sensor Array with a note attached 562 | -10/Mines | Found Prototype Device 649 | -10/Mines | Received a Rocket Launcher from a helpful Derelict 677 | -10/Mines | Discovered new exit (range 11) 757 | -10/Mines | Deemed a non-threat by the Exiles lab entrance 757 | -10/Mines | Discovered new exit (range 5) 761 | -10/Mines | Entered Exiles 781 | -10/Exiles | Met 8R-AWN 799 | -10/Exiles | Met EX-HEX 821 | -10/Exiles | Met EX-BIN 831 | -10/Exiles | Aligned with FarCom system 832 | -10/Exiles | Given EX-Vault access code 898 | -10/Exiles | Opened EX-Vault 902 | -10/Exiles | Found PSU Rigger 920 | -10/Exiles | Warned to stay clear of 0b10 Research branches 941 | -10/Exiles | Met EX-DEC 970 | -10/Exiles | Discovered new exit (range 10) 976 | -10/Exiles | Left Exiles lab with PSU Rigger 976 | -10/Exiles | Entered Mines 979 | -9/Mines | Assisted by bots powering up and referring to "LRC-V3" 1029 | -9/Mines | Learned location of 1 exit from Lower Caves 1036 | -9/Mines | Assembled infested the area 1041 | -9/Mines | Assisted by a Guerilla fighting off Assembled 1175 | -9/Mines | Learned Materials emergency access door positions 1254 | -9/Mines | Discovered new exit (range 8) 1366 | -9/Mines | Entered Materials 1366 | -8/Materials | Accompanied by 4 allies 1366 | -8/Materials | Evolved 4 slots: Utility x4 1371 | -8/Materials | Led the pair of lost Derelicts to an unsafe place 1384 | -8/Materials | Discovered new exit (range 9) 1471 | -8/Materials | Entered Storage 1471 | -8/Storage | Accompanied by 4 allies 1542 | -8/Storage | Repaired Beamcaster 1785 | -8/Storage | Assisted by bots powering up and referring to "LRC-V3" 1904 | -8/Storage | Discovered new exit (range 10) 2152 | -8/Storage | Entered Recycling 2152 | -8/Recycling | Accompanied by 12 allies 2153 | -8/Recycling | Met a Zionite searching for Scraptown 2250 | -8/Recycling | Build established: Commander-Skirmisher 2721 | -8/Recycling | Discovered new exit (range 15) 2987 | -8/Recycling | Entered Factory 2987 | -6/Factory | Accompanied by 8 allies 2987 | -6/Factory | Evolved 4 slots: Power x1, Utility x3 2989 | -6/Factory | Identified Exp. Sensor Array 3301 | -6/Factory | Garrison activated, responded to threat 3345 | -6/Factory | Crushed by falling debris 3374 | -6/Factory | Lost 6 allies 3425 | -6/Factory | Garrison activated, responded to threat 3646 | -6/Factory | Build established: Skirmisher 3746 | -6/Factory | Discovered new exit (range 8) 3827 | -6/Factory | Garrison activated, responded to threat 4075 | -6/Factory | Identified exit to Extension 4077 | -6/Factory | Entered Extension 4132 | -6/Extension | Warlord forces began an assault 4304 | -6/Extension | Rescued a captive Derelict 4305 | -6/Extension | Rescued a captive Derelict 4377 | -6/Extension | Build established: Mutant 4677 | -6/Extension | Build established: Scavenger-Mutant 5044 | -6/Extension | Discovered new exit (range 2) 5196 | -6/Extension | Rescued a captive Derelict 5243 | -6/Extension | Rescued A7 5439 | -6/Extension | Rescued a captive Derelict 5452 | -6/Extension | Rescued a captive Derelict 5452 | -6/Extension | Rescued a captive Derelict 5527 | -6/Extension | Identified exit to Factory 5537 | -6/Extension | Entered Factory 5537 | -5/Factory | Accompanied by 6 allies (A7) 5537 | -5/Factory | Evolved 2 slots: Utility x1, Weapon x1 5583 | -5/Factory | Discovered new exit (range 12) 5602 | -5/Factory | Identified exit to Upper Caves 6060 | -5/Factory | Build established: Scavenger-Assassin 6814 | -5/Factory | Fabricated Hvy. Disruptor Cannon? 6971 | -5/Factory | Build established: Scavenger-Mutant 7996 | -5/Factory | Lost 5 parts (1p2n2u) 8065 | -5/Factory | Lost 3 parts (2u1w) 8338 | -5/Factory | Build established: Mutant 8836 | -5/Factory | System corruption reached 10% 8881 | -5/Factory | Core integrity fell below 50% 8945 | -5/Factory | Core integrity fell below 20% 8991 | -5/Factory | Lost 16 parts (2p2n7u5w) 8996 | -5/Factory | Destroyed by H-66 Slayer with Gauss Rifle Last Messages --------------- 08954_ R-10 Processor collects Flexi-carbon Leg. 08957_ Penetrated by Slug. 08957_ K-01 Serf collects debris. 08958_ R-10 Processor collects Corrupted Welding Torch. 08958_ M-28 Smith repairs R-10 Processor. 08960_ Penetrated by Slug. 08960_ Sml. Storage Unit destroyed. 08963_ Slug penetrates R-10 Processor. 08964_ M-28 Smith repairs H-66 Slayer. 08964_ Rigged Fusion Compressor with PSU Rigger. 08966_ M-28 Smith fits Backup Power III on H-66 Slayer. 08973_ System corrupted: Substantial component data lost. 08981_ Acquired Mass Driver. 08984_ Acquired Arm. Wheel. 08989_ System corrupted: Heat flow error (+137). 08992_ Acquired Com. Battery. 08996_ Penetrated by Slug. Map ----- +----------------------------------------------------+ | ??????????????????????????????????????? | | ??????????????????????????????????????? | | ?????????????????????????????????####### | | ?????????????????????????????????# | | ?????????????????????????????????# | | ?????????????????????????????????# | | ?????????????????????????????????# | | ???????????????????????????? # | | ???????????????????????????# # | | ???????????????????????????# + | | ???????????????????????????# # | | ???????????????????????????# # | | ???????????????????????????# # | | ???????????????????????????# # | | ???????????????????????????# # * | | ???????????????????????????# ##+#### | | ??????????????############## | | ??????????????# # | | ??????????????+ # """"" | | ??????????????# """ """ # "" F" | | ??????????????# """ """ # "" "" | | ??????????????# """ """ # | | ??????????????# t # | | ??????????????# """ """ + """""" | | ??????????????# """ """ # """""" | | ??????????????#@ """ """ # """""" | | ??????????????# h # """""" | | ??????????????# # """""" | | ??????????????# # """""" | | ??????????????##+########### """""" | | ???????????????????????????# """?"" | | ???????????????????????????# """??" | | ???????????????????????????# ??? | | ??????????????????????????? ???? | | ??????????????????????????? ??? | | ??????????????????????????? ???? | | ????????????????g?????????? ??? | | ???????????????????????????#####???????? | | ???????????????????????????????????????? | | ???????????????????????????????????????? | | ???????????????????????????????????????? | | ???????????????????????????????????????? | | ???????????????????????????????????????? | | ???????????????????????????????????????? | | ???????????????????????????????????????? | | ???????????????????????????????????????? | | ???????????????????????????????????????? | | ???????????????????????????????????????? | | ???????????????????????????????????????? | | ???????????????????????????????????????? | +----------------------------------------------------+ Best States ------------- Heat Dissipation 64 Coolant Potential 80 Energy Generation 32 Energy Capacity 525 Matter Stores 300 Matter Capacity 300 Sight Range 20 Robot Scan Range 20 Terrain Scan Range 20 Terrain Scan Density 85 Armor Coverage 600 Resistance: TH 25 Resistance: EX 50 Propulsion Shielding 33 Evasion (%) 55 Targeting Accuracy 5 Target Analysis 6 Core Analysis 6 Armor Integrity Analysis 30 Recoil Reduction 2 Energy Filtering 50 Offensive Hacking 11 Item Schematics ----------------- Hvy. Disruptor Cannon | -6/Extension | Hacked Robot Schematics ------------------ A-02 Transporter | -6/Extension | Hacked Fabricated ------------ Hvy. Disruptor Cannon | x2 | -5/Factory Alien Tech Used ----------------- None Achievements -------------- \\IAMDERELICT Challenges ------------ None Game ------ Seed MagneticAnalysisChainsword Manual? 0 Play Time 01:44:17 Cumulative 42.9 hours Start 2024.08.15 @ 16:02:38 End 2024.08.17 @ 12:38:42 Sessions 6 Manual Loads 0 Difficulty Rogue Special Mode None Game No. 71 Rogue 67 Adventurer 4 Explorer 0 Win Type - Total 0 Types 0/0/0/0/0/0/0/0/0 Lore% 12 Gallery% 35 Achievement% 27 Wizard Run 0 Options --------- Layout 1 ASCII 0 Keyboard 0 Movement Mouse Keybinds 0 Fullscreen 2 Font 24/Smallcaps Map View 50x35 Zoom Use 0% Tactical HUD 1 Map Filters NONE Filters NONE Steam 1 RUN: 71cc0071-fad6-4c70-a6e8-2dfe8951a2d7